Cogmind - Beta 12 X6 @@@ ROGUE MODE // 2023.02.04 @ 15:28:28 Player: Decinym Result: Self-destructed Performance ------------- Evolutions (3) 1500 Regions Visited (9) 1800 Robots Destroyed (87) 435 Value Destroyed (3943) 3943 Prototype IDs (29) 580 Alien Tech Used (0) 0 Bonus (1535) 1535 TOTAL SCORE: 9793 Bonus ------- High Alert Combat Kills 584 Follower Combat Kills 289 Entered Garrisons 400 Aligned with FarCom 300 Friendly Fire -38 Cogmind --------- Core Integrity 343/700 Matter 300/300 Energy 160/160 System Corruption 7% Temperature Cool (0) Movement Treading (170) Location -7/Garrison Parts ------- > --- POWER (1) -------- Light Nuclear Core > --- PROPULSION (4) --- Armored Treads Armored Treads Armored Treads > --- UTILITY (6) ------ Advanced Heat Sink Large Storage Unit Improved Signal Interpreter Improved Light Armor Plating > --- WEAPON (2) ------- Heavy Particle Gun Advanced Beam Rifle > --- INVENTORY (15) --- Advanced Salvage Targeting Computer Arc Projector Disruptor Cannon Heavy Mace Peak State ------------ > --- POWER ------------ Micro Fission Core > --- PROPULSION ------- Carbon-fiber Leg Carbon-fiber Leg Carbon-fiber Leg Carbon-fiber Leg > --- UTILITY ---------- Advanced Heat Sink Large Storage Unit Improved Signal Interpreter Hardened Heavy Armor Plating Hacking Suite > --- WEAPON ----------- Heavy Particle Gun Advanced Beam Rifle > --- INVENTORY -------- Armored Treads Armored Treads Armored Treads High-capacity Battery Advanced Salvage Targeting Computer Hardened Medium Armor Plating Hardened Heavy Armor Plating Arc Projector Heavy Particle Gun Advanced Beam Rifle Disruptor Cannon Advanced EMP Blaster Heavy Mace [Rating: 51] Favorites ----------- Power Improved Ion Engine Engine Improved Ion Engine Power Core Light Nuclear Core Propulsion Light Treads Treads Light Treads Leg Aluminum Leg Wheel Wheel Utility Improved Heat Sink Device Improved Heat Sink Storage Large Storage Unit Processor Improved Signal Interpreter Hackware Hacking Suite Protection Hardened Heavy Armor Plating Weapon Advanced Beam Rifle Energy Gun Advanced Beam Rifle Ballistic Gun Light Assault Rifle Launcher Advanced EMP Blaster Impact Weapon Heavy Mace Build | -11 -10 -10 -10 -9 -8 -8 -8 -7 -7 ------- Run | Jun Mat Min Exi Min Mat Sto Gar Fac Gar Slots Evolved 6 | . . . . . 4 . . 2 . Power . | . . . . . . . . . . Propulsion 2 | . . . . . 1 . . 1 . Utility 4 | . . . . . 3 . . 1 . Weapon . | . . . . . . . . . . Parts Attached 91 | . . 6 1 4 . 35 13 17 15 Power 7 | . . . . 1 . 3 1 . 2 Engine 3 | . . . . 1 . 1 1 . . Core 4 | . . . . . . 2 . . 2 Reactor . | . . . . . . . . . . Propulsion 33 | . . 3 . 2 . 13 4 5 6 Treads 16 | . . 2 . . . 6 4 . 4 Leg 15 | . . 1 . . . 7 . 5 2 Wheel 2 | . . . . 2 . . . . . Hover . | . . . . . . . . . . Flight . | . . . . . . . . . . Utility 22 | . . 2 1 . . 5 5 6 3 Device 10 | . . 1 . . . 3 4 2 . Storage 2 | . . 1 1 . . . . . . Processor 1 | . . . . . . . . 1 . Hackware 1 | . . . . . . 1 . . . Protection 8 | . . . . . . 1 1 3 3 Artifact . | . . . . . . . . . . Weapon 29 | . . 1 . 1 . 14 3 6 4 Energy Gun 19 | . . 1 . . . 6 3 6 3 Energy Cannon . | . . . . . . . . . . Ballistic Gun 6 | . . . . 1 . 5 . . . Ballistic Cannon . | . . . . . . . . . . Launcher 3 | . . . . . . 2 . . 1 Special Weapon . | . . . . . . . . . . Impact Weapon 1 | . . . . . . 1 . . . Slashing Weapon . | . . . . . . . . . . Piercing Weapon . | . . . . . . . . . . Special Melee Weapon . | . . . . . . . . . . Unidentified Prototypes 6 | . . . . . . 4 . 2 . Corrupted Parts 1 | . . . . . . . . . 1 System Corruption 3 | . . . . . . . . . 3 Parts Lost 37 | . . 5 . 2 . 6 11 1 12 Power 5 | . . 1 . . . 1 1 . 2 Propulsion 16 | . . 3 . 2 . 2 5 . 4 Utility 9 | . . . . . . 1 3 1 4 Weapon 7 | . . 1 . . . 2 2 . 2 Highest Loss Streak 10 | . . 4 . 2 . 2 5 1 10 To Critical Strikes . | . . . . . . . . . . Average Slot Usage (%) 86 | . 85 87 71 81 63 83 93 89 83 Engine 6 | . 14 13 . 4 9 3 9 7 2 Core 1 | . . . . . . 5 . . 4 Treads 14 | . . . 28 18 . 10 23 5 12 Leg 10 | . 28 27 . . . 15 . 22 11 Device 13 | . . 3 14 14 9 11 20 14 7 Storage 9 | . 14 14 14 14 9 9 9 7 7 Hackware 6 | . . . . . . 8 9 7 4 Protection 3 | . . . . . . 1 4 7 7 Energy Gun 14 | . 14 15 14 14 9 7 18 14 14 Ballistic Gun 2 | . 14 11 . 10 9 8 . . . Naked Turns . | . . . . . . . . . . Heaviest Build 62 | 13 13 31 24 28 28 39 45 62 55 Greatest Support 60 | 20 20 40 40 40 26 60 60 60 60 Greatest Overweight (x) 2 | . . 1 . 1 1 2 1 2 1 Average Overweight (x) . | . . . . . 1 . . . . Largest Inventory Capacity 15 | . 8 15 15 15 15 15 15 15 15 Average Capacity 14 | . 8 8 15 15 15 15 15 15 15 Most Carried 15 | . 6 7 8 7 6 15 15 15 15 Average Carried 10 | . 6 6 5 5 5 9 12 14 8 Final Capacity 15 | 8 8 15 15 15 15 15 15 15 15 Final Carried 15 | 6 6 5 7 4 6 15 12 15 4 Class Distribution -------------------- 70% | Scavenger-Mutant 27% | Mutant Dominant Class ---------------- Mutant | -10/Materials Mutant | -10/Mines Mutant | -10/Exiles Mutant | -9/Mines Mutant | -8/Materials Scavenger-Mutant | -8/Storage Scavenger-Mutant | -8/Garrison Scavenger-Mutant | -7/Factory Mutant | -7/Garrison Resources | -11 -10 -10 -10 -9 -8 -8 -8 -7 -7 ----------- Run | Jun Mat Min Exi Min Mat Sto Gar Fac Gar Matter Collected 1276 | 149 . 113 15 9 . 584 105 137 164 Remotely . | . . . . . . . . . . Salvage Created 3840 | . . 175 . 32 . 1366 673 670 924 Parts 159 | . . 5 . 6 . 68 24 23 33 Haulers Intercepted 4 | . . . . . . 3 . 1 . Recyclers Shooed . | . . . . . . . . . . Parts Field Recycled . | . . . . . . . . . . Retrieved Matter . | . . . . . . . . . . Parts Self-Destructed . | . . . . . . . . . . Prevented . | . . . . . . . . . . Kills | -11 -10 -10 -10 -9 -8 -8 -8 -7 -7 ------- Run | Jun Mat Min Exi Min Mat Sto Gar Fac Gar Combat Hostiles Destroyed 81 | . . 8 . 3 . 22 16 12 20 Guns 68 | . . 8 . 3 . 17 15 12 13 AOE 11 | . . . . . . 5 . . 6 Classes Destroyed 16 | . . 2 . 1 . 10 2 1 . Worker 2 | . . . . . . 2 . . . Hauler 4 | . . . . . . 3 . 1 . Recycler 2 | . . . . . . 1 . 1 . Mechanic 2 | . . . . . . 2 . . . Operator 1 | . . . . . . 1 . . . Watcher 1 | . . . . . . 1 . . . Swarmer 19 | . . . . 3 . 4 4 4 4 Grunt 31 | . . 2 . . . 8 7 6 8 Brawler 2 | . . . . . . 2 . . . Duelist 3 | . . . . . . 2 . . 1 Protector 1 | . . . . . . 1 . . . Sentry 8 | . . . . . . 5 2 . 1 Specialist 1 | . . . . . . . 1 . . Hunter 8 | . . . . . . . 2 1 5 Programmer 2 | . . . . . . . . 1 1 Assembled 6 | . . 6 . . . . . . . Best Kill Streak 12 | . . 3 . 3 . 12 4 4 6 Combat Bots Only 8 | . . 3 . 3 . 8 4 4 6 Max Kills in Single Turn 4 | . . 1 . 1 . 4 2 1 3 Gunslinging . | . . . . . . . . . . Exploded 3 | . . . . . . 2 . . 3 Melee . | . . . . . . . . . . Uniques/NPCs Destroyed . | . . . . . . . . . . Combat | -11 -10 -10 -10 -9 -8 -8 -8 -7 -7 -------- Run | Jun Mat Min Exi Min Mat Sto Gar Fac Gar Damage Taken 7671 | . . 877 . 229 17 923 1498 846 3281 Core 1005 | . . 192 . 50 . 121 285 74 283 Absorbed by Shields 260 | . . . . . . . . 260 . Core Remaining (%) 43 | 100 . . . 3 . . 26 . . Volleys Fired 313 | . . 30 6 14 . 86 66 49 62 Largest 2 | . . 2 1 2 . 2 2 2 2 Hottest 136 | . . 70 65 85 . 122 136 122 122 Shots Fired 601 | . . 60 6 27 . 161 132 98 117 Gun 595 | . . 60 6 27 . 158 132 98 114 Cannon . | . . . . . . . . . . Launcher 6 | . . . . . . 3 . . 3 Special . | . . . . . . . . . . Kinetic 124 | . . 30 . 14 . 80 . . . Thermal 471 | . . 30 6 13 . 78 132 98 114 Explosive . | . . . . . . . . . . Electromagnetic 6 | . . . . . . 3 . . 3 Robot Hit Streak 20 | . . 7 . 8 . 20 13 9 15 Robot Miss Streak 4 | . . 4 . 4 . 3 4 4 4 Penetration Max . | . . . . . . . . . . Secondary Targets 9 | . . 1 . 1 . 1 3 . 3 Max Gunslinging Chain 1 | . . 1 . 1 . 1 1 . 1 Shots Hit Robots 366 | . . 36 . 12 . 103 71 62 82 Core Hits 171 | . . 18 . 3 . 59 24 23 44 Critical Kills . | . . . . . . . . . . Critical Parts Destroyed 1 | . . . . . . 1 . . . Critical Strikes 31 | . . . . 1 . 9 8 5 8 Burn 30 | . . . . 1 . 8 8 5 8 Destroy 1 | . . . . . . 1 . . . Melee Attacks 2 | . . . . . . 2 . . . Impact 2 | . . . . . . 2 . . . Slashing . | . . . . . . . . . . Piercing . | . . . . . . . . . . Sneak Attacks 1 | . . . . . . 1 . . . Combat Hostiles . | . . . . . . . . . . Follow-up Attacks . | . . . . . . . . . . Damage Inflicted 7909 | . . 397 . 163 . 2504 1500 1306 2039 Guns 6674 | . . 388 . 163 . 1736 1500 1289 1598 Cannons . | . . . . . . . . . . Explosions 1129 | . . . . . . 688 . . 441 Melee 77 | . . . . . . 77 . . . Ramming 29 | . . 9 . . . 3 . 17 . Kinetic 1034 | . . 123 . 75 . 836 . . . Thermal 5807 | . . 265 . 88 . 1026 1500 1289 1639 Explosive . | . . . . . . . . . . Electromagnetic 962 | . . . . . . 562 . . 400 Impact 77 | . . . . . . 77 . . . Slashing . | . . . . . . . . . . Piercing . | . . . . . . . . . . Highest Corruption 7 | . . . . . . . . 3 7 Average Corruption 4 | . . . . . . . . 3 4 Corruption Purged . | . . . . . . . . . . Corruption Blocked . | . . . . . . . . . . Effects 18 | . . . . . . . . 4 14 Message Errors 7 | . . . . . . . . 1 6 Matter Fused 2 | . . . . . . . . 2 . Heat Flow Errors 1 | . . . . . . . . . 1 Energy Discharges 2 | . . . . . . . . . 2 Parts Rejected 1 | . . . . . . . . . 1 Data Loss (minor) 1 | . . . . . . . . . 1 Data Loss (major) 1 | . . . . . . . . 1 . Misfires 1 | . . . . . . . . . 1 Weapon Failures 2 | . . . . . . . . . 2 Overload Shots . | . . . . . . . . . . Overflow Damage 6 | . . . . . . 6 . . . Projectiles . | . . . . . . . . . . Explosions 6 | . . . . . . 6 . . . Melee . | . . . . . . . . . . Knockbacks . | . . . . . . . . . . Impact . | . . . . . . . . . . Kinetic . | . . . . . . . . . . Secondary . | . . . . . . . . . . Self-Inflicted Damage 22 | . . . . . . 2 . . 20 Shots 4 | . . . . . . 1 . . 3 Rammed 1 | . . . . . . 1 . . . Targets Rammed 3 | . . 1 . . . 1 . 1 . Kicked 2 | . . 1 . . . . . 1 . Crushed . | . . . . . . . . . . Highest Temperature 441 | . . 200 25 32 . 441 33 151 299 Average Temperature 54 | . . 57 14 9 . 79 14 50 63 Received Heat Transfer 1880 | . . 255 . . . 459 450 176 540 Effects 5 | . . . . . . 2 . . 3 Interference 5 | . . . . . . 2 . . 3 Siege Activations . | . . . . . . . . . . Robots Corrupted . | . . . . . . . . . . Combat Hostiles . | . . . . . . . . . . Parts Fried 6 | . . . . . . 3 . . 3 Impact Corruptions . | . . . . . . . . . . Robots Melted 2 | . . . . . . . 1 . 1 Combat Hostiles 2 | . . . . . . . 1 . 1 Parts Melted 27 | . . . . . . 7 8 4 8 Heat Transferred 13348 | . . 777 . 296 . 2568 3367 2738 3602 Parts Sabotaged . | . . . . . . . . . . Parts Stolen . | . . . . . . . . . . Parts Stripped . | . . . . . . . . . . Power Chain Reactions 6 | . . . . . . 4 . . 2 Missiles Intercepted . | . . . . . . . . . . Alert | -11 -10 -10 -10 -9 -8 -8 -8 -7 -7 ------- Run | Jun Mat Min Exi Min Mat Sto Gar Fac Gar Peak Influence 924 | . . 88 . 50 34 510 924 608 777 Initial 485 | . . . . . 19 14 289 485 322 Average 439 | . . 30 . 14 23 156 685 501 555 Maximum Alert Level 3 | . . . . . . 2 3 2 3 Low Security (%) 26 | . 100 100 . 100 100 67 . . . Level 1 11 | . . . . . . 28 7 9 13 Level 2 35 | . . . . . . 4 28 90 54 Level 3 25 | . . . . . . . 63 . 32 Level 4 . | . . . . . . . . . . Level 5 . | . . . . . . . . . . High Security . | . . . . . . . . . . Max Security . | . . . . . . . . . . Squads Dispatched 12 | . . . . . . 8 . 4 . Investigation 1 | . . . . . . . . 1 . Extermination 1 | . . . . . . . . 1 . Reinforcement 3 | . . . . . . 1 . 2 . Assault 2 | . . . . . . 2 . . . Garrison 5 | . . . . . . 5 . . . Intercept . | . . . . . . . . . . Searches Triggered . | . . . . . . . . . . Construction Impeded . | . . . . . . . . . . Haulers Reinforced 1 | . . . . . . . . 1 . Active Scanning Responses . | . . . . . . . . . . Cargo Convoy Interrupts . | . . . . . . . . . . Stealth | -11 -10 -10 -10 -9 -8 -8 -8 -7 -7 --------- Run | Jun Mat Min Exi Min Mat Sto Gar Fac Gar Distress Signals 2 | . . 1 . . . 1 . . . Communications Jammed . | . . . . . . . . . . Distress Signals . | . . . . . . . . . . Times Spotted 119 | . 1 11 . 3 4 42 18 15 25 Peak Tracking Total 12 | . . 2 9 3 4 12 3 4 12 Tactical Retreats 6 | . . 1 . . . 1 1 . 3 Traps | -11 -10 -10 -10 -9 -8 -8 -8 -7 -7 ------- Run | Jun Mat Min Exi Min Mat Sto Gar Fac Gar Traps Triggered 4 | . . . . . . 1 2 1 . Indirectly . | . . . . . . . . . . Trap Hack Attempts . | . . . . . . . . . . Triggered . | . . . . . . . . . . Disarmed . | . . . . . . . . . . Reprogrammed . | . . . . . . . . . . Reused . | . . . . . . . . . . Traps Extracted . | . . . . . . . . . . Installed . | . . . . . . . . . . Triggered 1 | . . 1 . . . . . . . Machines | -11 -10 -10 -10 -9 -8 -8 -8 -7 -7 ---------- Run | Jun Mat Min Exi Min Mat Sto Gar Fac Gar Machines Disabled 11 | . . . 3 . . 3 4 . 1 Max in Single Turn 1 | . . . 1 . . 1 1 . 1 Garrison Relay 5 | . . . . . . . 3 . 2 Machines Repaired . | . . . . . . . . . . Machines Sabotaged . | . . . . . . . . . . Overloaded Fab Kills . | . . . . . . . . . . Hacking | -11 -10 -10 -10 -9 -8 -8 -8 -7 -7 --------- Run | Jun Mat Min Exi Min Mat Sto Gar Fac Gar Machines Accessed 13 | . . . 2 . . 7 3 1 . Terminals 9 | . . . . . . 6 3 . . Fabricators . | . . . . . . . . . . Repair Stations . | . . . . . . . . . . Recycling Units . | . . . . . . . . . . Scanalyzers . | . . . . . . . . . . Garrison Access 2 | . . . . . . 1 . 1 . Total Hacks 30 | . . . 2 . . 20 5 3 . Successful 16 | . . . 2 . . 10 3 1 . Failed 14 | . . . . . . 10 2 2 . Catastrophic 2 | . . . . . . 1 1 . . Database Lockouts . | . . . . . . . . . . Manual 18 | . . . 1 . . 17 . . . Terminals 24 | . . . . . . 19 5 . . Fabricators . | . . . . . . . . . . Repair Stations . | . . . . . . . . . . Recycling Units . | . . . . . . . . . . Scanalyzers . | . . . . . . . . . . Garrison Access 4 | . . . . . . 1 . 3 . Terminal Hacks 10 | . . . 2 . . 5 3 . . Record 1 | . . . 1 . . . . . . Open Door 2 | . . . . . . 1 1 . . Emergency Access Points 1 | . . . . . . . 1 . . Alert Level 1 | . . . . . . 1 . . . Unreport Threat 1 | . . . . . . 1 . . . Zone Layout 2 | . . . . . . 2 . . . Security Stations 1 | . . . . . . . 1 . . EX-Prototype ID Bank 1 | . . . 1 . . . . . . Fabricator Hacks . | . . . . . . . . . . Repair Station Hacks . | . . . . . . . . . . Recycling Unit Hacks . | . . . . . . . . . . Scanalyzer . | . . . . . . . . . . Garrison Access Hacks 2 | . . . . . . 1 . 1 . Unlock Access 2 | . . . . . . 1 . 1 . Unauthorized Hacks 4 | . . . . . . 4 . . . Terminals 4 | . . . . . . 4 . . . Botnet 4 | . . . . . . 4 . . . Fabricators . | . . . . . . . . . . Repair Stations . | . . . . . . . . . . Recycling Units . | . . . . . . . . . . Scanalyzers . | . . . . . . . . . . Garrison Access . | . . . . . . . . . . Data Cores Recovered . | . . . . . . . . . . Used . | . . . . . . . . . . Hacking Detections 8 | . . . . . . 5 2 1 . Full Trace Events 2 | . . . . . . . 1 1 . Feedback Events . | . . . . . . . . . . Feedback Blocked . | . . . . . . . . . . Robot Schematics Acquired . | . . . . . . . . . . Robots Built . | . . . . . . . . . . Authchips . | . . . . . . . . . . Time . | . . . . . . . . . . Total Robot Build Rating . | . . . . . . . . . . Part Schematics Acquired . | . . . . . . . . . . Parts Built . | . . . . . . . . . . Authchips . | . . . . . . . . . . Time . | . . . . . . . . . . Total Part Build Rating . | . . . . . . . . . . Parts Repaired . | . . . . . . . . . . Time . | . . . . . . . . . . Parts Recycled . | . . . . . . . . . . Recycled Matter . | . . . . . . . . . . Retrieved Matter . | . . . . . . . . . . Retrieved Components . | . . . . . . . . . . Parts Scanalyzed . | . . . . . . . . . . Part Schematics Acquired . | . . . . . . . . . . Parts Damaged . | . . . . . . . . . . Bothacking | -11 -10 -10 -10 -9 -8 -8 -8 -7 -7 ------------ Run | Jun Mat Min Exi Min Mat Sto Gar Fac Gar Used RIF Installer . | . . . . . . . . . . Robots Hacked . | . . . . . . . . . . Non-combat . | . . . . . . . . . . Combat . | . . . . . . . . . . Robot Hacks Applied . | . . . . . . . . . . Relay Couplers Released 21 | . . . . . . . 12 . 9 Machine Destruction 21 | . . . . . . . 12 . 9 Fabnet Peak Effective % . | . . . . . . . . . . Robots Rewired . | . . . . . . . . . . Allies Hacked . | . . . . . . . . . . Hacks Repelled . | . . . . . . . . . . Allies | -11 -10 -10 -10 -9 -8 -8 -8 -7 -7 -------- Run | Jun Mat Min Exi Min Mat Sto Gar Fac Gar Total Allies 16 | . . 3 . . . 12 1 . . Largest Group 10 | . . 3 . . . 10 1 . . Highest-Rated Group 173 | . . 40 . . . 173 20 . . Highest-Rated Ally 31 | . . 16 . . . 31 20 . . Total Orders . | . . . . . . . . . . Ally Attacks 88 | . . 13 . . . 72 3 . . Total Damage 1048 | . . 132 . . . 816 100 . . Kills 15 | . . 2 . . . 12 1 . . Allies Corrupted . | . . . . . . . . . . Allies Melted . | . . . . . . . . . . Intel | -11 -10 -10 -10 -9 -8 -8 -8 -7 -7 ------- Run | Jun Mat Min Exi Min Mat Sto Gar Fac Gar Robot Analysis Total . | . . . . . . . . . . Derelict Logs Recovered . | . . . . . . . . . . Drone Launches . | . . . . . . . . . . Drone Recoveries . | . . . . . . . . . . Exploration | -11 -10 -10 -10 -9 -8 -8 -8 -7 -7 ------------- Run | Jun Mat Min Exi Min Mat Sto Gar Fac Gar Turns Passed 4981 | . 32 433 527 74 37 904 1522 884 568 Spaces Moved 2361 | 1 27 264 320 22 34 358 711 378 246 Core . | . . . . . . . . . . Treads 1353 | . . 6 320 15 . 112 711 64 125 Legs 921 | 1 27 258 . . . 200 . 314 121 Wheels 87 | . . . . 7 34 46 . . . Hover . | . . . . . . . . . . Flight . | . . . . . . . . . . Fastest Speed 90 | 120 120 120 160 105 105 90 160 120 120 Average Speed 162 | 120 120 126 160 142 105 156 183 179 146 Slowest Speed 260 | 120 120 190 160 160 105 260 240 260 250 Overloaded Moves . | . . . . . . . . . . Propulsion Burnouts . | . . . . . . . . . . Robots Hopped . | . . . . . . . . . . Cave-ins Triggered . | . . . . . . . . . . Exploration Rate (%) 29 | 2 12 35 70 18 6 36 70 12 34 Regions Visited 9 Branch Regions 4 Pre-discovered Areas 1 | . . . 1 . . . . . . Known Exits Taken 2 | . . . . . . 1 . 1 . Unknown Exits Taken 6 | 1 1 1 1 1 1 . . . . Scrap Searched 1 | . . 1 . . . . . . . Spaces Dug 1 | . . . . . . 1 . . . Terrain Destroyed 16 | . . . . . . 16 . . . Melee 1 | . . . . . . 1 . . . Projectile . | . . . . . . . . . . AOE 15 | . . . . . . 15 . . . Terrain Rammed . | . . . . . . . . . . Walls Destroyed . | . . . . . . . . . . Machines Disabled . | . . . . . . . . . . Actions | -11 -10 -10 -10 -9 -8 -8 -8 -7 -7 --------- Run | Jun Mat Min Exi Min Mat Sto Gar Fac Gar Total 2905 | . 26 309 329 40 35 541 800 489 336 Wait 55 | . . 6 . . . 19 1 19 10 Move 2353 | . 26 263 319 21 33 358 709 378 246 Hop . | . . . . . . . . . . Pick Up 34 | . . 1 2 1 2 16 4 8 . Fast Attach 40 | . . 3 . . . 19 5 10 3 Attach 34 | . . 2 . 4 . 8 7 4 9 Detach 4 | . . . . . . 2 . 2 . Swap 17 | . . 1 1 . . 8 1 3 3 Drop 46 | . . 2 1 . . 22 3 15 3 Fire 313 | . . 30 6 14 . 86 66 49 62 Melee 2 | . . . . . . 2 . . . Ram . | . . . . . . . . . . Kick 2 | . . 1 . . . . . 1 . Crush 1 | . . . . . . 1 . . . Escape Stasis 4 | . . . . . . . 4 . . Rewire . | . . . . . . . . . . Trap . | . . . . . . . . . . Miscellaneous . | . . . . . . . . . . Route ------- -11/Junkyard -10/Materials -10/Mines -10/Exiles -9/Mines -8/Materials -8/Storage -8/Garrison (discovered 2 exits: *Fac x2) -7/Factory -7/Garrison (discovered 1 exit: [*Fac]) History --------- Turn | Location | Event 1 | -11/Junkyard | Discovered new exit (range 0) 1 | -11/Junkyard | Entered Materials 15 | -10/Materials | Discovered new exit (range 16) 33 | -10/Materials | Entered Mines 44 | -10/Mines | Assisted by bots powering up and referring to "LRC-V3" 112 | -10/Mines | Assembled infested the area 263 | -10/Mines | Deemed a non-threat by the Exiles lab entrance 305 | -10/Mines | Build established: Mutant 454 | -10/Mines | Core integrity fell below 50% 456 | -10/Mines | Discovered new exit (range 7) 466 | -10/Mines | Entered Exiles 487 | -10/Exiles | Lost 4 parts (1p2n1w) 506 | -10/Exiles | Met 8R-AWN 532 | -10/Exiles | Met EX-HEX 585 | -10/Exiles | Met EX-BIN 607 | -10/Exiles | Aligned with FarCom system 609 | -10/Exiles | Given EX-Vault access code 647 | -10/Exiles | Opened EX-Vault 681 | -10/Exiles | Warned to stay clear of 0b10 Research branches 729 | -10/Exiles | Met EX-DEC 881 | -10/Exiles | Learned location of Zion (-7) 961 | -10/Exiles | Attacked by the Exiles 980 | -10/Exiles | Discovered new exit (range 10) 993 | -10/Exiles | Entered Mines 1003 | -9/Mines | Met a Derelict bent on vengeance 1005 | -9/Mines | Discovered new exit (range 15) 1024 | -9/Mines | Core integrity fell below 20% 1067 | -9/Mines | Entered Materials 1067 | -8/Materials | Evolved 4 slots: Propulsion x1, Utility x3 1087 | -8/Materials | Discovered new exit (range 13) 1104 | -8/Materials | Entered Storage 1143 | -8/Storage | Assisted by bots powering up and referring to "LRC-V3" 1487 | -8/Storage | Build established: Scavenger-Mutant 1577 | -8/Storage | Garrison activated, responded to threat 1864 | -8/Storage | Met a pair of Derelict thieves 1878 | -8/Storage | Garrison activated, responded to threat 1954 | -8/Storage | Destroyed 8 combat bots 2008 | -8/Storage | Identified exit to Garrison 2008 | -8/Storage | Entered Garrison 2052 | -8/Garrison | Triggered checkpoint 2115 | -8/Garrison | Garrison Relay disabled 2137 | -8/Garrison | Learned Factory security intel 2234 | -8/Garrison | Triggered checkpoint 2302 | -8/Garrison | Discovered new exit (range 10) 2340 | -8/Garrison | Triggered checkpoint 2379 | -8/Garrison | Garrison Relay disabled 2385 | -8/Garrison | Lost 3 parts (1n2u) 2482 | -8/Garrison | Triggered checkpoint 2556 | -8/Garrison | Garrison Relay disabled 2567 | -8/Garrison | Core integrity fell below 50% 2621 | -8/Garrison | Discovered new exit (range 10) 2806 | -8/Garrison | Rescued a captive Derelict 3004 | -8/Garrison | Lost 5 parts (1p3n1u) 3314 | -8/Garrison | Attempted to access garrison exit controls, blocked by remote lockdown 3530 | -8/Garrison | Entered Factory 3530 | -7/Factory | Evolved 2 slots: Propulsion x1, Utility x1 4414 | -7/Factory | Identified exit to Garrison 4414 | -7/Factory | Entered Garrison 4434 | -7/Garrison | Triggered checkpoint 4462 | -7/Garrison | Triggered checkpoint 4470 | -7/Garrison | Garrison Relay disabled 4588 | -7/Garrison | Triggered checkpoint 4693 | -7/Garrison | Lost 10 parts (2p4n2u2w) 4769 | -7/Garrison | Triggered checkpoint 4790 | -7/Garrison | Core integrity fell below 50% 4906 | -7/Garrison | Triggered checkpoint 4942 | -7/Garrison | Garrison Relay disabled 4977 | -7/Garrison | Discovered new exit (range 11) 4982 | -7/Garrison | Self-destructed Last Messages --------------- 04775_ Carbon-fiber Leg melted. 04775_ H-55 Commando destroyed. 04781_ Critical hit (Burn: +37). 04784_ Hacking Suite destroyed. 04790_ G-47 Trooper destroyed. 04790_ Switching to secondary target: P-60 Hacker. 04796_ Destroyed Imp. Heat Sink. 04799_ P-60 Hacker critical meltdown. 04806_ Acquired 5 matter. 04821_ System corrupted: Energy discharge (-57). 04879_ System corrupted: Energy discharge (-44). 04922_ LGI3M9HBELKL BS3K42=A#OS1UMLAO6